[Event "Krakow ICC op-A"]
[Site "Krakow POL"]
[Date "2024.06.22"]
[Round "1.23"]
[White "Cieslak, Patryk"]
[Black "Keleberda, Tymur"]
[Result "1/2-1/2"]
[ECO "B90"]
[WhiteElo "2358"]
[BlackElo "2223"]
[WhiteFideId "-1"]
[BlackFideId "-1"]
[PlyCount "165"]
[GameId "2129404696544925"]
[EventDate "2024.06.20"]
[EventType "swiss"]
[EventRounds "9"]
[EventCountry "POL"]
[SourceTitle "10 Days #763"]
[Source "ChessMix "]
[SourceDate "2024.07.01"]
[SourceVersion "1"]
[SourceVersionDate "2024.07.01"]
[SourceQuality "1"]
[TimeControl "40/5400+30:1800+30"]

1. e4 {[%emt 0:00:03]} c5 {[%emt 0:00:08]} 2. Nf3 {[%emt 0:00:04]} d6 {[%emt 0:00:04]} 3. d4 {[%emt 0:00:27]} cxd4 {[%emt 0:00:05]} 4. Nxd4 {[%emt 0:00:02]} Nf6 {[%emt 0:00:02]} 5. Nc3 {[%emt 0:00:25]} a6 {[%emt 0:00:05]} 6. h3 {[%emt 0:01:13]} e5 {[%emt 0:00:31]} 7. Nb3 {[%emt 0:00:02]} Be7 {[%emt 0:01:37]} 8. g4 {[%emt 0:01:20]} h6 {[%emt 0:00:47]} 9. Be3 {[%emt 0:00:02]} Be6 {[%emt 0:03:07]} 10. Qf3 {[%emt 0:02:02]} Nc6 {[%emt 0:08:08]} 11. O-O-O {[%emt 0:05:10]} Rc8 {[%emt 0:01:26]} 12. Kb1 {[%emt 0:09:37]} Na5 {[%emt 0:02:08]} 13. Nd5 {[%emt 0:10:39]} Bxd5 {[%emt 0:00:37]} 14. exd5 {[%emt 0:00:14]} Nxb3 {[%emt 0:00:11]} 15. axb3 {[%emt 0:02:41]} Nd7 {[%emt 0:00:04]} 16. Bd3 {[%emt 0:05:48]} Bg5 {[%emt 0:00:23]} 17. h4 {[%emt 0:06:04]} Bxh4 {[%emt 0:13:37]} 18. Bf5 {[%emt 0:01:28]} Bg5 {[%emt 0:07:04]} 19. Bxd7+ {[%emt 0:23:24]} Kxd7 {[%emt 0:00:20]} 20. Qf5+ {[%emt 0:05:08]} Kc7 {[%emt 0:00:12]} 21. Qxf7+ {[%emt 0:03:02]} Qe7 {[%emt 0:00:08]} 22. Qxe7+ {[%emt 0:01:08]} Bxe7 {[%emt 0:00:09]} 23. Rh5 {[%emt 0:02:38]} Rhf8 {[%emt 0:05:03]} 24. c3 {[%emt 0:02:06]} Rf3 {[%emt 0:02:08]} 25. Rd2 {[%emt 0:01:43]} Rcf8 {[%emt 0:04:57]} 26. Kc2 {[%emt 0:00:39]} Bd8 {[%emt 0:06:03]} 27. b4 {[%emt 0:01:52]} Kd7 {[%emt 0:05:28]} 28. Kb3 {[%emt 0:02:32]} R8f6 {[%emt 0:05:02]} 29. g5 {[%emt 0:02:29]} hxg5 {[%emt 0:02:12]} 30. Rxg5 {[%emt 0:00:59]} Rf7 {[%emt 0:00:07]} 31. Rg4 {[%emt 0:00:26]} Rh3 {[%emt 0:01:28]} 32. b5 {[%emt 0:02:45]} Rh4 {[%emt 0:12:34]} 33. bxa6 {[%emt 0:00:29]} bxa6 {[%emt 0:00:45]} 34. Rg6 {[%emt 0:01:46]} Bf6 {[%emt 0:01:18]} 35. Rd1 {[%emt 0:00:08]} Kc8 {[%emt 0:00:10]} 36. Ra1 {[%emt 0:00:10]} Rb7+ {[%emt 0:01:23]} 37. Kc2 {[%emt 0:00:31]} Rb5 {[%emt 0:00:06]} 38. Rxa6 {[%emt 0:00:37]} Rxd5 {[%emt 0:00:09]} 39. Rg1 {[%emt 0:03:06]} Kd7 {[%emt 0:01:13]} 40. Rga1 {[%emt 0:01:18]} Rc4 {[%emt 0:03:32]} 41. Ra7+ {[%emt 0:05:03]} Ke6 {[%emt 0:00:16]} 42. R1a4 {[%emt 0:01:44]} Rc8 {[%emt 0:02:33]} 43. Rb7 {[%emt 0:00:44]} Kf5 {[%emt 0:04:03]} 44. Raa7 {[%emt 0:07:12]} e4 {[%emt 0:02:42]} 45. Rc7 {[%emt 0:01:01]} Rxc7 {[%emt 0:01:22]} 46. Rxc7 {[%emt 0:00:02]} g5 {[%emt 0:00:02]} 47. b4 {[%emt 0:02:50]} g4 {[%emt 0:00:05]} 48. Ba7 {[%emt 0:05:01]} Be5 {[%emt 0:02:41]} 49. Rc8 {[%emt 0:02:38]} Ke6 {[%emt 0:00:42]} 50. Rc4 {[%emt 0:00:29]} Kf5 {[%emt 0:01:41]} 51. Rc8 {[%emt 0:00:02]} Ke6 {[%emt 0:00:06]} 52. Rc7 {[%emt 0:04:56]} Rd3 {[%emt 0:06:57]} 53. b5 {[%emt 0:01:25]} d5 {[%emt 0:00:04]} 54. Rc5 {[%emt 0:00:58]} Rf3 {[%emt 0:01:09]} 55. Rc6+ {[%emt 0:00:58]} Kd7 {[%emt 0:00:11]} 56. Kd2 {[%emt 0:01:40]} Bf4+ {[%emt 0:05:38]} 57. Ke2 {[%emt 0:00:29]} Rd3 {[%emt 0:01:38]} 58. Bd4 {[%emt 0:00:53]} Rd2+ {[%emt 0:00:13]} 59. Kf1 {[%emt 0:00:27]} Rb2 {[%emt 0:01:19]} 60. Rf6 {[%emt 0:00:13]} Bd6 {[%emt 0:01:41]} 61. b6 {[%emt 0:00:51]} g3 {[%emt 0:00:08]} 62. fxg3 {[%emt 0:00:30]} Bxg3 {[%emt 0:00:04]} 63. Rf7+ {[%emt 0:01:02]} Ke6 {[%emt 0:00:23]} 64. Rf6+ {[%emt 0:00:05]} Kd7 {[%emt 0:00:05]} 65. Rf5 {[%emt 0:00:22]} Ke6 {[%emt 0:00:24]} 66. Rg5 {[%emt 0:00:05]} Bf4 {[%emt 0:00:56]} 67. Rg8 {[%emt 0:01:42]} Kf5 {[%emt 0:02:57]} 68. Rg2 {[%emt 0:01:57]} Rb1+ {[%emt 0:05:27]} 69. Ke2 {[%emt 0:00:01]} Be5 {[%emt 0:00:07]} 70. Bxe5 {[%emt 0:00:38]} Kxe5 {[%emt 0:00:13]} 71. Rg5+ {[%emt 0:00:15]} Kd6 {[%emt 0:00:48]} 72. Ke3 {[%emt 0:00:56]} Kc5 {[%emt 0:00:20]} 73. Rg8 {[%emt 0:01:44]} Rxb6 {[%emt 0:00:36]} 74. Ra8 {[%emt 0:00:32]} Rb1 {[%emt 0:00:29]} 75. Rc8+ {[%emt 0:00:32]} Kd6 {[%emt 0:00:05]} 76. Rd8+ {[%emt 0:00:39]} Kc6 {[%emt 0:00:07]} 77. Kd2 {[%emt 0:00:46]} Rb2+ {[%emt 0:01:53]} 78. Kc1 {[%emt 0:00:01]} Re2 {[%emt 0:02:28]} 79. Kd1 {[%emt 0:00:04]} Re3 {[%emt 0:00:05]} 80. Kc2 {[%emt 0:00:22]} Rd3 {[%emt 0:00:36]} 81. Re8 {[%emt 0:00:09]} Kd6 {[%emt 0:01:04]} 82. c4 {[%emt 0:00:54]} Rh3 {[%emt 0:04:38]} 83. cxd5 {[%emt 0:00:23]} 1/2-1/2

[Event "Krakow ICC op-A"]
[Site "Krakow POL"]
[Date "2024.06.23"]
[Round "3.13"]
[White "Keleberda, Tymur"]
[Black "Aarav, Dengla"]
[Result "1-0"]
[ECO "B50"]
[WhiteElo "2223"]
[BlackElo "2395"]
[WhiteFideId "-1"]
[BlackFideId "-1"]
[PlyCount "89"]
[GameId "2129404696610476"]
[EventDate "2024.06.20"]
[EventType "swiss"]
[EventRounds "9"]
[EventCountry "POL"]
[SourceTitle "10 Days #763"]
[Source "ChessMix "]
[SourceDate "2024.07.01"]
[SourceVersion "1"]
[SourceVersionDate "2024.07.01"]
[SourceQuality "1"]
[TimeControl "40/5400+30:1800+30"]

1. e4 {[%emt 0:00:07]} c5 {[%emt 0:00:34]} 2. Nf3 {[%emt 0:00:08]} d6 {[%emt 0:00:15]} 3. c3 {[%emt 0:00:14]} Nf6 {[%emt 0:00:06]} 4. h3 {[%emt 0:00:04]} Nc6 {[%emt 0:00:05]} 5. Bd3 {[%emt 0:00:05]} e5 {[%emt 0:00:07]} 6. Bc2 {[%emt 0:00:05]} d5 {[%emt 0:00:05]} 7. exd5 {[%emt 0:02:04]} Qxd5 {[%emt 0:01:17]} 8. O-O {[%emt 0:01:19]} e4 {[%emt 0:00:14]} 9. Re1 {[%emt 0:00:19]} Be6 {[%emt 0:29:03]} 10. c4 {[%emt 0:03:33]} Qh5 {[%emt 0:06:54]} 11. Bxe4 {[%emt 0:02:15]} Nxe4 {[%emt 0:00:03]} 12. Rxe4 {[%emt 0:00:02]} O-O-O {[%emt 0:00:48]} 13. Nc3 {[%emt 0:06:07]} Nd4 {[%emt 0:09:58]} 14. Nxd4 {[%emt 0:03:48]} Qxd1+ {[%emt 0:00:08]} 15. Nxd1 {[%emt 0:00:05]} Rxd4 {[%emt 0:07:41]} 16. Rxd4 {[%emt 0:00:20]} cxd4 {[%emt 0:00:02]} 17. b3 {[%emt 0:02:20]} Be7 {[%emt 0:03:04]} 18. f3 {[%emt 0:04:51]} Bh4 {[%emt 0:06:01]} 19. Bb2 {[%emt 0:04:24]} Rd8 {[%emt 0:00:33]} 20. Nf2 {[%emt 0:00:18]} Bxf2+ {[%emt 0:03:23]} 21. Kxf2 {[%emt 0:00:38]} Bf5 {[%emt 0:03:13]} 22. g4 {[%emt 0:03:01]} Bd3 {[%emt 0:00:41]} 23. Re1 {[%emt 0:00:21]} Rd7 {[%emt 0:00:10]} 24. h4 {[%emt 0:01:34]} a6 {[%emt 0:06:03]} 25. h5 {[%emt 0:05:26]} Kd8 {[%emt 0:03:07]} 26. Ba3 {[%emt 0:02:20]} b5 {[%emt 0:04:28]} 27. cxb5 {[%emt 0:00:05]} axb5 {[%emt 0:01:00]} 28. Bc5 {[%emt 0:00:04]} h6 {[%emt 0:05:46]} 29. a4 {[%emt 0:01:52]} bxa4 {[%emt 0:01:54]} 30. bxa4 {[%emt 0:00:08]} f5 {[%emt 0:03:06]} 31. Bb6+ {[%emt 0:03:41]} Kc8 {[%emt 0:00:02]} 32. Re6 {[%emt 0:00:01]} fxg4 {[%emt 0:02:09]} 33. fxg4 {[%emt 0:00:13]} Rd5 {[%emt 0:01:33]} 34. Re7 {[%emt 0:05:02]} g6 {[%emt 0:02:20]} 35. hxg6 {[%emt 0:00:05]} Bxg6 {[%emt 0:00:05]} 36. a5 {[%emt 0:00:04]} Bd3 {[%emt 0:00:13]} 37. Rg7 {[%emt 0:01:01]} Re5 {[%emt 0:01:55]} 38. Rc7+ {[%emt 0:03:11]} Kb8 {[%emt 0:00:04]} 39. Rd7 {[%emt 0:00:06]} Re2+ {[%emt 0:00:44]} 40. Kg3 {[%emt 0:00:06]} Rxd2 {[%emt 0:00:49]} 41. Rxd4 {[%emt 0:30:05]} Rd1 {[%emt 0:10:48]} 42. a6 {[%emt 0:00:00]} Be2 {[%emt 0:02:37]} 43. a7+ {[%emt 0:00:00]} Ka8 {[%emt 0:01:20]} 44. Rf4 {[%emt 0:00:00]} Rf1 {[%emt 0:03:44]} 45. Bf2 {[%emt 0:00:00]} 1-0

[Event "Krakow ICC op-A"]
[Site "Krakow POL"]
[Date "2024.06.26"]
[Round "6.10"]
[White "Nguyen, Piotr"]
[Black "Keleberda, Tymur"]
[Result "0-1"]
[ECO "C01"]
[WhiteElo "2426"]
[BlackElo "2223"]
[WhiteFideId "-1"]
[BlackFideId "-1"]
[PlyCount "88"]
[GameId "2129404696614610"]
[EventDate "2024.06.20"]
[EventType "swiss"]
[EventRounds "9"]
[EventCountry "POL"]
[SourceTitle "10 Days #763"]
[Source "ChessMix "]
[SourceDate "2024.07.01"]
[SourceVersion "1"]
[SourceVersionDate "2024.07.01"]
[SourceQuality "1"]
[TimeControl "40/5400+30:1800+30"]

1. e4 {[%emt 0:00:55]} e6 {[%emt 0:00:26]} 2. d4 {[%emt 0:00:11]} d5 {[%emt 0:00:08]} 3. exd5 {[%emt 0:01:26]} exd5 {[%emt 0:00:20]} 4. Nf3 {[%emt 0:00:05]} Bd6 {[%emt 0:01:49]} 5. c4 {[%emt 0:00:16]} c6 {[%emt 0:00:22]} 6. c5 {[%emt 0:03:53]} Bc7 {[%emt 0:00:10]} 7. Bd3 {[%emt 0:00:10]} h6 {[%emt 0:00:18]} 8. O-O {[%emt 0:01:14]} Ne7 {[%emt 0:00:05]} 9. Qc2 {[%emt 0:04:05]} b6 {[%emt 0:02:34]} 10. b4 {[%emt 0:05:16]} O-O {[%emt 0:01:22]} 11. a4 {[%emt 0:11:20]} Re8 {[%emt 0:13:16]} 12. Nc3 {[%emt 0:09:05]} Nd7 {[%emt 0:01:08]} 13. Be3 {[%emt 0:07:57]} bxc5 {[%emt 0:08:26]} 14. bxc5 {[%emt 0:08:10]} Nf8 {[%emt 0:03:30]} 15. h3 {[%emt 0:03:25]} Neg6 {[%emt 0:02:58]} 16. Rae1 {[%emt 0:02:43]} Bd7 {[%emt 0:01:34]} 17. Bc1 {[%emt 0:05:58]} Qf6 {[%emt 0:01:31]} 18. Re3 {[%emt 0:10:46]} Nf4 {[%emt 0:09:31]} 19. Rxe8 {[%emt 0:06:20]} Rxe8 {[%emt 0:00:47]} 20. Bxf4 {[%emt 0:00:05]} Qxf4 {[%emt 0:01:28]} 21. Qd2 {[%emt 0:02:50]} Qf6 {[%emt 0:02:25]} 22. Re1 {[%emt 0:00:31]} Rxe1+ {[%emt 0:03:08]} 23. Nxe1 {[%emt 0:00:17]} Ba5 {[%emt 0:04:37]} 24. Nf3 {[%emt 0:02:08]} Bxh3 {[%emt 0:02:52]} 25. Ne5 {[%emt 0:08:22]} Bc8 {[%emt 0:04:57]} 26. Be2 {[%emt 0:01:20]} Ng6 {[%emt 0:02:09]} 27. Ng4 {[%emt 0:03:40]} Qe7 {[%emt 0:02:33]} 28. Kf1 {[%emt 0:00:21]} Qb7 {[%emt 0:00:53]} 29. Qe3 {[%emt 0:00:28]} Be6 {[%emt 0:00:50]} 30. Nd1 {[%emt 0:00:44]} Qb4 {[%emt 0:00:08]} 31. g3 {[%emt 0:00:37]} Qxa4 {[%emt 0:01:25]} 32. Kg2 {[%emt 0:00:04]} Qc2 {[%emt 0:01:04]} 33. Bf3 {[%emt 0:00:33]} Bb4 {[%emt 0:02:20]} 34. Ne5 {[%emt 0:00:32]} Bd2 {[%emt 0:01:51]} 35. Qe2 {[%emt 0:01:18]} Nxe5 {[%emt 0:00:10]} 36. Qxe5 {[%emt 0:00:40]} a5 {[%emt 0:00:16]} 37. Qd6 {[%emt 0:00:35]} Qa4 {[%emt 0:03:46]} 38. Qb8+ {[%emt 0:00:24]} Kh7 {[%emt 0:00:11]} 39. Qb1+ {[%emt 0:00:08]} g6 {[%emt 0:00:19]} 40. Qd3 {[%emt 0:00:19]} Bg5 {[%emt 0:00:35]} 41. Nc3 {[%emt 0:30:59]} Qb4 {[%emt 0:31:00]} 42. Ne2 {[%emt 0:00:40]} a4 {[%emt 0:00:27]} 43. Qa6 {[%emt 0:00:07]} a3 {[%emt 0:01:04]} 44. Qxc6 {[%emt 0:00:00]} a2 {[%emt 0:00:00]} 0-1

[Event "Excelsior March op"]
[Site "Toronto CAN"]
[Date "2024.03.15"]
[Round "1.6"]
[White "Keleberda, Tymur"]
[Black "Lakhani, Riyaan"]
[Result "1-0"]
[ECO "B06"]
[WhiteElo "2198"]
[BlackElo "1792"]
[WhiteFideId "-1"]
[BlackFideId "-1"]
[PlyCount "67"]
[GameId "2160767740051113"]
[EventDate "2024.03.15"]
[EventType "swiss"]
[EventRounds "5"]
[EventCountry "CAN"]
[TimeControl "90+30"]
[WhiteClock "1:05:57"]
[BlackClock "0:51:47"]

1. e4 {[%emt 0:00:00]} g6 {[%emt 0:00:00]} 2. d4 {[%emt 0:00:00]} Bg7 {[%emt 0:00:00]} 3. Bc4 {[%emt 0:00:00]} c6 {[%emt 0:00:00]} 4. Nc3 {[%emt 0:00:00]} d5 {[%emt 0:00:00]} 5. exd5 {[%emt 0:00:00]} b5 {[%emt 0:00:00]} 6. Bb3 {[%emt 0:00:00]} b4 {[%emt 0:00:00]} 7. Na4 {[%emt 0:00:00]} cxd5 {[%emt 0:00:00]} 8. a3 {[%emt 0:00:00]} Nc6 {[%emt 0:00:00]} 9. Be3 {[%emt 0:00:00]} a5 {[%emt 0:00:00]} 10. Nc5 {[%emt 0:00:00]} Nf6 {[%emt 0:00:00]} 11. axb4 {[%emt 0:00:00]} Nxb4 {[%emt 0:00:00]} 12. Ba4+ {[%emt 0:00:00]} Nd7 {[%emt 0:00:00]} 13. c3 {[%emt 0:00:00]} Na6 {[%emt 0:00:00]} 14. Bc6 {[%emt 0:00:00]} Rb8 {[%emt 0:00:00]} 15. Bxd7+ {[%emt 0:00:00]} Bxd7 {[%emt 0:00:00]} 16. Nxa6 {[%emt 0:00:00]} Rxb2 {[%emt 0:00:00]} 17. Nc5 {[%emt 0:00:00]} Bf5 {[%emt 0:00:00]} 18. Qa4+ {[%emt 0:00:00]} Kf8 {[%emt 0:00:00]} 19. Nf3 {[%emt 0:00:00]} Bf6 {[%emt 0:00:00]} 20. Bh6+ {[%emt 0:00:00]} Bg7 {[%emt 0:00:00]} 21. Bc1 {[%emt 0:00:00]} Rc2 {[%emt 0:00:00]} 22. Qb3 {[%emt 0:00:00]} Bf6 {[%emt 0:00:00]} 23. Bh6+ {[%emt 0:00:00]} Bg7 {[%emt 0:00:00]} 24. Bf4 {[%emt 0:00:00]} Bf6 {[%emt 0:00:00]} 25. O-O {[%emt 0:00:00]} Kg7 {[%emt 0:00:00]} 26. Rfe1 {[%emt 0:00:00]} h6 {[%emt 0:00:00]} 27. Ne5 {[%emt 0:00:00]} g5 {[%emt 0:00:00]} 28. Bg3 {[%emt 0:00:00]} h5 {[%emt 0:00:00]} 29. Nc6 {[%emt 0:00:00]} Qe8 {[%emt 0:00:00]} 30. Nxe7 {[%emt 0:00:00]} Bxe7 {[%emt 0:00:00]} 31. Qxd5 {[%emt 0:00:00]} Be6 {[%emt 0:00:00]} 32. Nxe6+ {[%emt 0:00:00]} fxe6 {[%emt 0:00:00]} 33. Qxe6 {[%emt 0:00:00]} Kf8 {[%emt 0:00:00]} 34. Qf5+ {[%emt 0:00:00]} 1-0

[Event "Excelsior March op"]
[Site "Toronto CAN"]
[Date "2024.03.16"]
[Round "2.6"]
[White "Zhong, Ryan Yunhui"]
[Black "Keleberda, Tymur"]
[Result "1-0"]
[ECO "B15"]
[WhiteElo "1826"]
[BlackElo "2198"]
[WhiteFideId "-1"]
[BlackFideId "-1"]
[PlyCount "63"]
[GameId "2160767740051121"]
[EventDate "2024.03.15"]
[EventType "swiss"]
[EventRounds "5"]
[EventCountry "CAN"]
[TimeControl "90+30"]
[WhiteClock "0:10:42"]
[BlackClock "0:07:11"]

1. e4 {[%emt 0:00:00]} g6 {[%emt 0:00:00]} 2. d4 {[%emt 0:00:00]} Bg7 {[%emt 0:00:00]} 3. Nf3 {[%emt 0:00:00]} c6 {[%emt 0:00:00]} 4. Bd3 {[%emt 0:00:00]} d5 {[%emt 0:00:00]} 5. e5 {[%emt 0:00:00]} Nh6 {[%emt 0:00:00]} 6. Nc3 {[%emt 0:00:00]} f6 {[%emt 0:00:00]} 7. exf6 {[%emt 0:00:00]} exf6 {[%emt 0:00:00]} 8. Qe2+ {[%emt 0:00:00]} Kf7 {[%emt 0:00:00]} 9. O-O {[%emt 0:00:00]} Bf5 {[%emt 0:00:00]} 10. Re1 {[%emt 0:00:00]} Qd7 {[%emt 0:00:00]} 11. Bf4 {[%emt 0:00:00]} Bxd3 {[%emt 0:00:00]} 12. Qxd3 {[%emt 0:00:00]} Nf5 {[%emt 0:00:00]} 13. b4 {[%emt 0:00:00]} Na6 {[%emt 0:00:00]} 14. Reb1 {[%emt 0:00:00]} Nc7 {[%emt 0:00:00]} 15. g4 {[%emt 0:00:00]} Ne6 {[%emt 0:00:00]} 16. Bg3 {[%emt 0:00:00]} Nd6 {[%emt 0:00:00]} 17. b5 {[%emt 0:00:00]} Nc4 {[%emt 0:00:00]} 18. Rb3 {[%emt 0:00:00]} b6 {[%emt 0:00:00]} 19. Nd2 {[%emt 0:00:00]} c5 {[%emt 0:00:00]} 20. Nxc4 {[%emt 0:00:00]} dxc4 {[%emt 0:00:00]} 21. Qxc4 {[%emt 0:00:00]} Qxd4 {[%emt 0:00:00]} 22. Qe2 {[%emt 0:00:00]} Qd7 {[%emt 0:00:00]} 23. Ne4 {[%emt 0:01:35.30]} Rhd8 {[%emt 0:00:00]} 24. Nd6+ {[%emt 0:01:26]} Kg8 {[%emt 0:00:00]} 25. Re3 {[%emt 0:00:41]} Nd4 {[%emt 0:04:41.30]} 26. Qc4+ {[%emt 0:00:17]} Kf8 {[%emt 0:00:35]} 27. Rae1 {[%emt 0:00:35]} Qxd6 {[%emt 0:04:15]} 28. Bxd6+ {[%emt 0:00:34]} Rxd6 {[%emt 0:00:05]} 29. Re7 {[%emt 0:00:14]} Nf3+ {[%emt 0:00:05]} 30. Kh1 {[%emt 0:00:05]} Ng5 {[%emt 0:00:03]} 31. h4 {[%emt 0:01:13]} Rd4 {[%emt 0:00:05]} 32. Qe2 {[%emt 0:00:08]} 1-0

[Event "Excelsior March op"]
[Site "Toronto CAN"]
[Date "2024.03.16"]
[Round "3.4"]
[White "Keleberda, Tymur"]
[Black "Kim, Noah"]
[Result "1-0"]
[ECO "B50"]
[WhiteElo "2198"]
[BlackElo "2204"]
[WhiteFideId "-1"]
[BlackFideId "-1"]
[PlyCount "121"]
[GameId "2160767740051127"]
[EventDate "2024.03.15"]
[EventType "swiss"]
[EventRounds "5"]
[EventCountry "CAN"]
[TimeControl "90+30"]
[WhiteClock "0:02:59"]
[BlackClock "0:00:35"]

1. e4 {[%emt 0:00:00]} c5 {[%emt 0:00:00]} 2. Nf3 {[%emt 0:00:00]} d6 {[%emt 0:00:00]} 3. c3 {[%emt 0:00:00]} Nf6 {[%emt 0:00:00]} 4. h3 {[%emt 0:00:00]} Nc6 {[%emt 0:00:00]} 5. Bd3 {[%emt 0:00:00]} e5 {[%emt 0:00:00]} 6. Bc2 {[%emt 0:00:00]} g6 {[%emt 0:00:00]} 7. O-O {[%emt 0:00:00]} Bg7 {[%emt 0:00:00]} 8. d4 {[%emt 0:00:00]} cxd4 {[%emt 0:00:00]} 9. cxd4 {[%emt 0:00:00]} exd4 {[%emt 0:00:00]} 10. Nxd4 {[%emt 0:00:00]} O-O {[%emt 0:00:00]} 11. Nxc6 {[%emt 0:00:00]} bxc6 {[%emt 0:00:00]} 12. Qf3 {[%emt 0:00:00]} Qe7 {[%emt 0:00:00]} 13. Nc3 {[%emt 0:00:00]} Rd8 {[%emt 0:00:00]} 14. Bg5 {[%emt 0:00:00]} h6 {[%emt 0:00:00]} 15. Bh4 {[%emt 0:00:00]} Be6 {[%emt 0:00:00]} 16. Rfe1 {[%emt 0:00:00]} Rab8 {[%emt 0:00:00]} 17. Rab1 {[%emt 0:00:00]} g5 {[%emt 0:00:00]} 18. Bg3 {[%emt 0:00:00]} Nd7 {[%emt 0:00:00]} 19. Nd5 {[%emt 0:00:00]} cxd5 {[%emt 0:00:00]} 20. exd5 {[%emt 0:00:00]} Ne5 {[%emt 0:00:00]} 21. Bxe5 {[%emt 0:00:00]} Bxe5 {[%emt 0:00:00]} 22. dxe6 {[%emt 0:00:00]} fxe6 {[%emt 0:00:00]} 23. Qe4 {[%emt 0:00:00]} Qg7 {[%emt 0:00:00]} 24. b4 {[%emt 0:00:00]} Rf8 {[%emt 0:00:00]} 25. g3 {[%emt 0:00:00]} Rf6 {[%emt 0:00:00]} 26. Rf1 {[%emt 0:00:00]} Rbf8 {[%emt 0:00:00]} 27. Kg2 {[%emt 0:00:00]} h5 {[%emt 0:00:00]} 28. Bd1 {[%emt 0:00:00]} h4 {[%emt 0:00:00]} 29. Be2 {[%emt 0:00:00]} Qf7 {[%emt 0:01:51.30]} 30. Qe3 {[%emt 0:00:00]} Qb7+ {[%emt 0:02:34]} 31. Kg1 {[%emt 0:00:00]} hxg3 {[%emt 0:00:54]} 32. fxg3 {[%emt 0:06:13.30]} Rxf1+ {[%emt 0:02:53]} 33. Rxf1 {[%emt 0:03:43]} Rxf1+ {[%emt 0:01:16]} 34. Bxf1 {[%emt 0:00:05]} Qxb4 {[%emt 0:01:03]} 35. Qxg5+ {[%emt 0:00:11]} Kf7 {[%emt 0:01:42]} 36. Qh5+ {[%emt 0:00:33]} Kf8 {[%emt 0:00:31]} 37. Qh6+ {[%emt 0:00:14]} Kf7 {[%emt 0:00:15]} 38. Qh7+ {[%emt 0:00:53]} Kf8 {[%emt 0:00:10]} 39. Qh6+ {[%emt 0:01:02]} Kf7 {[%emt 0:01:18]} 40. Qh5+ {[%emt 0:00:14]} Kf8 {[%emt 0:00:43]} 41. Qf3+ {[%emt 0:00:08]} Ke7 {[%emt 0:00:40]} 42. h4 {[%emt 0:04:00]} Qd4+ {[%emt 0:00:46]} 43. Kg2 {[%emt 0:01:45]} d5 {[%emt 0:01:12]} 44. Kh3 {[%emt 0:00:38]} Bd6 {[%emt 0:01:24]} 45. Bb5 {[%emt 0:01:59]} Qg1 {[%emt 0:03:06]} 46. h5 {[%emt 0:00:44]} Be5 {[%emt 0:01:11]} 47. Bd3 {[%emt 0:01:02]} Qc1 {[%emt 0:00:24]} 48. Bg6 {[%emt 0:00:43]} Bf6 {[%emt 0:00:34]} 49. a4 {[%emt 0:01:06]} a5 {[%emt 0:00:31]} 50. Qb3 {[%emt 0:00:37]} Qf1+ {[%emt 0:00:50]} 51. Kg4 {[%emt 0:00:29]} Qc4+ {[%emt 0:00:31]} 52. Qxc4 {[%emt 0:00:14]} dxc4 {[%emt 0:00:02]} 53. Bc2 {[%emt 0:00:53]} Be5 {[%emt 0:00:58]} 54. h6 {[%emt 0:00:22]} Kf6 {[%emt 0:00:38]} 55. Kh4 {[%emt 0:00:09]} Bc3 {[%emt 0:00:25]} 56. g4 {[%emt 0:00:10]} Bd2 {[%emt 0:00:34]} 57. Kh5 {[%emt 0:00:06]} Be3 {[%emt 0:00:28]} 58. g5+ {[%emt 0:00:12]} Kf7 {[%emt 0:00:20]} 59. g6+ {[%emt 0:00:15]} Kg8 {[%emt 0:00:45]} 60. g7 {[%emt 0:00:14]} Kf7 {[%emt 0:00:26]} 61. Bh7 {[%emt 0:00:07]} 1-0

[Event "Excelsior March op"]
[Site "Toronto CAN"]
[Date "2024.03.17"]
[Round "4.4"]
[White "Stevens, Christian"]
[Black "Keleberda, Tymur"]
[Result "1/2-1/2"]
[ECO "D02"]
[WhiteElo "2354"]
[BlackElo "2198"]
[WhiteFideId "-1"]
[BlackFideId "-1"]
[PlyCount "45"]
[GameId "2160767740051135"]
[EventDate "2024.03.15"]
[EventType "swiss"]
[EventRounds "5"]
[EventCountry "CAN"]
[TimeControl "90+30"]
[WhiteClock "0:29:04"]
[BlackClock "1:01:42"]

1. Nf3 {[%emt 0:00:00]} d5 {[%emt 0:00:00]} 2. d4 {[%emt 0:00:00]} Nf6 {[%emt 0:00:00]} 3. Bf4 {[%emt 0:00:00]} e6 {[%emt 0:00:00]} 4. e3 {[%emt 0:00:00]} Bd6 {[%emt 0:00:00]} 5. c3 {[%emt 0:00:00]} O-O {[%emt 0:00:00]} 6. Nbd2 {[%emt 0:00:00]} Bxf4 {[%emt 0:00:00]} 7. exf4 {[%emt 0:00:00]} b6 {[%emt 0:00:00]} 8. Bd3 {[%emt 0:00:00]} Ba6 {[%emt 0:00:00]} 9. Bxa6 {[%emt 0:00:00]} Nxa6 {[%emt 0:00:00]} 10. Qe2 {[%emt 0:00:00]} Nb8 {[%emt 0:00:00]} 11. O-O {[%emt 0:00:00]} c5 {[%emt 0:00:00]} 12. Ne5 {[%emt 0:00:00]} Ne8 {[%emt 0:00:00]} 13. dxc5 {[%emt 0:00:00]} bxc5 {[%emt 0:00:00]} 14. f5 {[%emt 0:00:00]} exf5 {[%emt 0:00:00]} 15. Qf3 {[%emt 0:00:00]} g6 {[%emt 0:00:00]} 16. c4 {[%emt 0:00:00]} Nf6 {[%emt 0:00:00]} 17. cxd5 {[%emt 0:00:00]} Qxd5 {[%emt 0:00:00]} 18. Qxd5 {[%emt 0:00:00]} Nxd5 {[%emt 0:00:00]} 19. Ndc4 {[%emt 0:00:00]} f6 {[%emt 0:00:00]} 20. Nf3 {[%emt 0:00:00]} Rd8 {[%emt 0:00:00]} 21. Rfd1 {[%emt 0:00:00]} Nc6 {[%emt 0:00:00]} 22. Kf1 {[%emt 0:00:00]} Nb6 {[%emt 0:00:00]} 23. Rxd8+ {[%emt 0:00:00]} 1/2-1/2